bitfinex-derivatives/quotes_ETHF0:USTF0_20250926
["timestamp","ask_amount","ask_price","bid_price","bid_amount"]
[1758916073679,1.35078975,4008.8,4008.4,5.57340425]
[1758916073680,0.5654,4008.5,4008.4,5.57340425]
[1758916073883,0.5654,4008.5,4008.4,5.83040425]
[1758916074084,0.5654,4008.5,4008.4,6.15540425]
[1758916074493,0.35222339,4008.9,4008.8,0.7834]
[1758916074692,0.56812339,4008.9,4008.8,1.0404]
[1758916074992,1.23778339,4008.9,4008.8,0.7154]
[1758916075593,1.23778339,4008.9,4008.8,1.0404]
[1758916075989,1.23778339,4008.9,4008.8,0.4793]
[1758916076186,1.23778339,4008.9,4008.8,0.257]
[1758916077097,1.2351,4008.5,4008.4,5.89840425]
[1758916077288,1.3635,4008.5,4008.4,5.83040425]
[1758916078296,1.3635,4008.5,4008.4,6.15540425]
[1758916079003,1.2351,4008.5,4008.4,6.15540425]
[1758916079503,1.2351,4008.5,4008.4,5.89840425]
[1758916080402,1.3635,4008.5,4008.4,0.4584]
[1758916080602,1.3635,4008.5,4008.4,0.7154]
[1758916080903,1.2351,4008.5,4008.4,1.0404]
[1758916081105,1.3635,4008.5,4008.4,1.0404]
[1758916082400,1.2351,4008.5,4008.4,1.0404]
[1758916082904,1.3635,4008.5,4008.4,0.7154]
[1758916083909,1.3635,4008.5,4008.4,0.4793]
[1758916084305,0.44868,4008.7,4008.6,0.4584]
[1758916084603,0.44868,4008.7,4008.6,0.7834]
[1758916084803,1.01408,4008.7,4008.6,1.0404]
[1758916085009,1.12997218,4008.7,4008.6,1.0404]
[1758916085209,0.56457218,4008.7,4008.6,0.79728306]
[1758916085406,0.11589218,4008.7,4008.6,1.01958306]
[1758916085805,0.89747218,4008.7,4008.6,1.01958306]
[1758916086004,1.11007218,4008.7,4008.6,0.69458306]
[1758916086204,0.66139218,4008.7,4008.6,0.93228306]
[1758916086613,1.11007218,4008.7,4008.6,0.93228306]
[1758916086819,1.11007218,4008.7,4008.6,0.69458306]
[1758916087421,0.44879218,4008.7,4008.6,0.67528306]
[1758916087628,0.44879218,4008.7,4008.6,0.93228306]
[1758916088624,0.44879218,4008.7,4008.6,7.27000227]
[1758916088817,0.44879218,4008.7,4008.6,6.82131227]
[1758916089524,1.11007218,4008.7,4008.6,6.82131227]
[1758916090323,1.11007218,4008.7,4008.6,6.58361227]
[1758916090724,1.33327218,4008.7,4008.6,0.43758306]
[1758916091026,1.0222,4008.5,4008.4,0.221]
[1758916091220,1.13809218,4008.5,4008.4,0.478]
[1758916091421,1.47099218,4008.5,4008.4,0.478]
[1758916091726,1.47099218,4008.5,4008.4,0.257]
[1758916091923,0.4358,4008.3,4008.2,1.56514375]
[1758916092129,1.33332218,4008.3,4008.2,0.478]
[1758916092433,1.33332218,4008.3,4008.2,0.6929]
[1758916093630,1.35986,4008.0,4007.9,0.02816335]
[1758916093822,1.02699218,4008.0,4007.9,0.72166335]
[1758916094021,1.47575218,4008.0,4007.9,0.72166335]
[1758916094327,1.02699218,4008.0,4007.9,0.72166335]
[1758916094920,1.47575218,4008.0,4007.9,0.72166335]
[1758916095221,1.02699218,4008.0,4007.9,0.46466335]
[1758916095419,1.02699218,4008.0,4007.9,0.72166335]
[1758916095830,1.47575218,4008.0,4007.9,0.72166335]
[1758916096226,1.02699218,4008.0,4007.9,0.72166335]
[1758916096427,1.47575218,4008.0,4007.9,0.51146335]
[1758916096824,0.11589218,4008.0,4007.9,0.95706335]
[1758916097029,0.3315,4008.4,4007.9,0.72166335]
[1758916097229,0.55947182,4008.3,4008.2,0.6719]
[1758916097431,0.11074182,4008.3,4008.2,0.9289]
[1758916097631,0.55947182,4008.3,4008.2,0.9289]
[1758916097828,0.89097182,4008.3,4008.2,0.9289]
[1758916099032,1.34317182,4008.3,4008.2,0.2263]
[1758916099225,1.23244,4008.2,4008.1,1.34389195]
[1758916099530,1.23244,4008.2,4008.1,0.257]
[1758916100328,1.23244,4008.2,4008.1,1.60092609]
[1758916100723,1.23244,4008.2,4007.9,0.02816335]
[1758916100724,0.44875,4008.1,4008.0,1.34392609]
[1758916100924,1.23245,4008.1,4008.0,0.257]
[1758916101324,1.23245,4008.1,4008.0,1.60105026]
[1758916101527,1.23245,4008.1,4008.0,0.257]
[1758916101829,0.57616,4008.0,4007.9,0.02816335]
[1758916102029,1.35986,4008.0,4007.9,0.28516335]
[1758916104538,1.35986,4008.0,4007.9,0.51146335]
[1758916104726,1.35986,4008.0,4007.9,0.28516335]
[1758916105632,1.35986,4008.0,4007.9,0.51146335]
[1758916105836,0.6825,4008.0,4007.9,0.72166335]
[1758916106038,0.9111,4008.0,4007.9,0.72166335]
[1758916106226,0.4589,4008.0,4007.9,0.95706335]
[1758916106627,1.13126,4008.0,4007.9,2.51737341]
[1758916106828,0.6825,4008.0,4007.9,2.51737341]
[1758916107133,0.6825,4008.0,4007.9,2.75277341]
[1758916107336,3.5393,4008.3,4008.0,0.2354]
[1758916107534,0.5551,4008.3,4008.2,2.23221006]
[1758916107728,0.3315,4008.3,4008.2,2.72461006]
[1758916107933,0.3315,4008.7,4008.6,0.6719]
[1758916108135,0.3315,4008.7,4008.6,2.72461006]
[1758916108527,1.00378,4008.7,4008.6,2.48921006]
[1758916108840,0.7837,4008.7,4008.6,2.48921006]
[1758916109040,1.34250292,4008.7,4008.6,2.48921006]
[1758916109340,1.34250292,4008.7,4008.6,3.39612655]
[1758916109535,1.23239,4008.6,4008.5,1.34341649]
[1758916109838,1.23242,4008.4,4008.3,1.79571006]
[1758916110040,0.3315,4008.6,4008.3,2.72461006]
[1758916110235,1.4699519,4008.5,4008.3,3.57213178]
[1758916110441,1.3425719,4008.4,4008.3,2.02201006]
[1758916110635,1.3425719,4008.4,4008.3,2.27901006]
[1758916110832,1.3425719,4008.4,4008.3,2.02201006]
[1758916111136,1.3425719,4008.4,4008.3,2.27901006]
[1758916111635,0.8938519,4008.4,4008.3,2.27901006]
[1758916111936,0.8938519,4008.4,4008.3,2.48921006]
[1758916112540,0.6652519,4008.4,4008.3,2.72461006]
[1758916113234,0.6652519,4008.4,4008.3,2.48921006]
[1758916113832,3.21052339,4008.9,4008.3,3.17334006]
[1758916114039,0.66536489,4008.8,4008.7,0.6719]
[1758916114347,0.66536489,4008.8,4008.7,0.6935]
[1758916114348,1.11403489,4008.8,4008.7,0.6935]
[1758916114541,1.34263489,4008.8,4008.7,0.6935]
[1758916114940,0.89396489,4008.8,4008.7,0.6935]
[1758916115136,0.89396489,4008.8,4008.7,2.48921006]
[1758916115339,1.34263489,4008.8,4008.7,2.48921006]
[1758916115547,1.34263489,4008.8,4008.7,3.83249214]
[1758916115739,1.34263489,4008.8,4008.7,3.39599214]
[1758916115938,1.34263489,4008.8,4008.7,3.62229214]
[1758916116441,1.34263489,4008.8,4008.7,3.36529214]
[1758916116643,1.34263489,4008.8,4008.7,3.62229214]
[1758916117144,1.34263489,4008.8,4008.7,3.83249214]
[1758916117540,0.89396489,4008.8,4008.7,3.83249214]
[1758916117737,0.66536489,4008.8,4008.7,2.23221006]
[1758916117938,1.34263489,4008.8,4008.7,2.27901006]
[1758916118337,0.89396489,4008.8,4008.7,2.05271006]
[1758916118536,1.34263489,4008.8,4008.7,2.27901006]
[1758916118735,0.89396489,4008.8,4008.7,2.48921006]
[1758916118939,0.7837,4008.8,4008.7,2.48921006]
[1758916119442,1.23237,4008.8,4008.7,2.48921006]
[1758916120343,0.7837,4008.8,4008.7,2.48921006]
[1758916120543,0.5551,4008.8,4008.7,2.72461006]
[1758916120843,0.5551,4008.8,4008.7,2.48921006]
[1758916121047,0.7837,4008.8,4008.7,2.48921006]
[1758916121246,1.23237,4008.8,4008.7,2.48921006]
[1758916121444,1.23237,4008.8,4008.7,2.23221006]
[1758916121640,1.23237,4008.8,4008.7,2.48921006]
[1758916121837,3.2078,4009.4,4008.8,0.6719]
[1758916122042,0.6722,4009.5,4009.4,0.7809]
[1758916122235,0.4486,4009.5,4009.4,1.0379]
[1758916122442,4.10725,4009.9,4009.8,0.7728]
[1758916122642,4.10725,4009.9,4009.8,1.0298]
[1758916122942,4.10941577,4009.9,4009.8,2.82551006]
[1758916123844,0.00216577,4009.9,4009.8,7.37649332]
[1758916124048,0.00216577,4009.9,4009.8,6.22875693]
[1758916124243,3.2078,4010.4,4010.0,0.1238]
[1758916124447,0.2254,4010.4,4010.3,1.66695027]
[1758916124650,0.2254,4010.4,4010.3,1.92395027]
[1758916124849,0.67389,4010.4,4010.3,1.92395027]
[1758916125241,0.67709078,4010.4,4010.3,1.0298]
[1758916125945,0.78232521,4010.4,4010.3,1.0298]
[1758916126444,0.00320078,4010.4,4010.3,1.0298]
[1758916126842,0.22860078,4010.4,4010.3,1.0298]
[1758916127347,0.22860078,4010.4,4010.3,1.92252041]
[1758916127849,0.67709078,4010.4,4010.3,1.92252041]
[1758916128351,0.00320078,4010.4,4010.3,5.13032041]
[1758916128653,0.00320078,4010.4,4010.3,4.2376]
[1758916128845,0.00320078,4010.4,4010.3,5.12987787]
[1758916129244,0.00320078,4010.4,4010.3,4.2376]
[1758916130243,0.00320078,4010.4,4010.3,4.6861]
[1758916131147,0.00320078,4010.4,4010.3,6.02275122]
[1758916131341,0.3253,4011.6,4011.1,0.325]
[1758916131549,0.44835,4011.7,4011.3,2.56851006]
[1758916131744,0.67375,4011.7,4011.6,0.7728]
[1758916131945,0.2254,4011.7,4011.6,2.82551006]
[1758916132253,0.2254,4012.1,4012.0,0.8966]
[1758916132553,0.22777483,4012.1,4012.0,2.95168003]
[1758916132753,0.00237483,4012.1,4012.0,2.95168003]
[1758916133851,0.7762,4013.2,4013.1,0.4478]
[1758916134044,3.2078,4013.4,4013.2,0.325]
[1758916134351,3.2078,4013.4,4013.1,2.05271006]
[1758916134352,0.2254,4013.4,4013.3,1.0298]
[1758916134942,0.22725959,4013.4,4013.3,1.0298]
[1758916135140,3.98585959,4013.4,4013.3,1.0298]
[1758916136751,3.98585959,4013.4,4013.3,0.7728]
[1758916136949,0.44823,4012.7,4012.5,0.1238]
[1758916137151,1.22448,4012.3,4012.2,3.7488]
[1758916137350,1.22448,4012.3,4012.2,4.0058]
[1758916138348,1.22448,4012.3,4012.2,4.2376]
[1758916138349,0.2254,4012.3,4012.2,4.2376]
[1758916138554,0.67364,4012.7,4012.6,0.7728]
[1758916138755,0.67364,4012.7,4012.6,1.0298]
[1758916139448,3.65602,4012.9,4012.6,0.7048]
[1758916139649,1.22442,4012.8,4012.7,0.7728]
[1758916139848,1.22442,4012.8,4012.7,1.0298]
[1758916140246,0.4509,4012.5,4012.4,0.325]
[1758916140554,0.4509,4012.5,4012.4,1.0298]
[1758916140953,0.44825,4012.6,4012.4,1.0298]
[1758916141150,3.6587,4013.3,4013.2,0.216]
[1758916141352,4.10687,4013.3,4013.2,1.0298]
[1758916141858,0.00185959,4013.4,4013.2,0.7048]
[1758916142060,0.00185959,4013.4,4013.3,0.7728]
[1758916143053,0.00185959,4013.4,4013.3,3.9806]
[1758916144360,0.22725959,4013.4,4013.3,3.7488]
[1758916144555,0.22725959,4013.4,4013.0,0.1238]
[1758916144556,0.77805959,4013.4,4013.0,0.1238]
[1758916144861,0.7762,4013.2,4013.1,0.798]
[1758916145163,0.4509,4013.2,4013.1,1.0298]
[1758916145659,0.2254,4013.2,4013.1,1.0298]
[1758916145862,0.44817,4013.3,4013.1,0.7048]
[1758916146158,0.67357,4013.3,4013.2,0.7728]
[1758916148159,0.89367,4013.3,4013.2,0.7728]
[1758916149358,1.20487,4013.3,4013.2,0.7728]
[1758916151162,0.89367,4013.3,4013.2,0.7728]
[1758916151559,0.89367,4013.3,4013.2,1.0288]
[1758916151761,0.00185959,4013.4,4013.2,1.0288]
[1758916151961,0.45001959,4013.4,4013.3,0.773]
[1758916152168,0.66361959,4013.4,4013.3,0.773]
[1758916152958,0.45001959,4013.4,4013.3,0.773]
[1758916153466,0.66181959,4013.4,4013.3,0.773]
[1758916154367,0.00185959,4013.4,4013.3,0.773]
[1758916154967,0.00185959,4013.4,4013.3,1.22117]
[1758916155271,0.10855519,4013.4,4013.3,0.773]
[1758916155567,1.32931519,4013.4,4013.3,0.562]
[1758916155867,0.4376,4013.1,4013.0,0.5662]
[1758916156162,0.76667051,4013.1,4013.0,1.1298]
[1758916156369,0.31848051,4013.1,4013.0,1.1298]
[1758916156568,0.76667051,4013.1,4013.0,0.8738]
[1758916156770,0.31848051,4013.1,4013.0,1.1298]
[1758916157173,0.10668051,4013.1,4013.0,1.1298]
[1758916158568,0.10668051,4013.1,4013.0,1.578]
[1758916158774,0.00185959,4013.4,4013.3,1.19767]
[1758916159077,0.00185959,4013.4,4013.3,6.5618061]
[1758916159472,3.2078,4014.3,4014.2,0.219]
[1758916159775,3.6454,4014.3,4014.2,6.1136361]
[1758916160171,4.09346,4014.3,4014.2,6.1136361]
[1758916160571,0.88808801,4014.3,4014.2,6.1136361]
[1758916161379,0.44002801,4014.3,4014.2,6.1136361]
[1758916161576,0.00242801,4014.3,4014.2,9.3214361]
[1758916163165,0.00242801,4014.3,4014.2,10.65808732]
[1758916163376,0.21422801,4014.3,4014.2,9.0985361]
[1758916163572,0.44002801,4014.3,4014.2,9.0985361]
[1758916163773,0.44002801,4014.3,4014.2,9.3214361]
[1758916164575,0.00242801,4014.3,4014.2,9.3214361]
[1758916165380,4.09334,4015.3,4015.2,0.7495]
[1758916165677,3.86754,4015.3,4015.2,6.1136361]
[1758916165871,4.09334,4015.3,4015.2,6.1136361]
[1758916166076,4.42834,4015.3,4015.2,6.1136361]
[1758916166276,1.22327887,4015.3,4015.2,6.11561568]
[1758916168587,0.88827887,4015.3,4015.2,6.11561568]
[1758916169088,0.66247887,4015.3,4015.2,6.11561568]
[1758916169390,0.00273887,4015.3,4015.2,6.11561568]
[1758916169591,0.00273887,4015.3,4015.2,9.77137568]
[1758916170183,0.44788,4015.9,4015.8,0.4419]
[1758916170384,0.44788,4015.9,4015.8,1.0055]
[1758916170686,0.65968,4015.9,4015.8,1.0055]
[1758916170888,1.32718128,4015.9,4015.8,1.0055]
[1758916171085,1.22054,4015.3,4015.2,0.00197958]
[1758916171282,1.22054,4015.3,4015.2,0.25797958]
[1758916171283,4.53504128,4015.3,4015.2,0.25797958]
[1758916172091,4.53504128,4015.3,4015.2,0.00197958]
[1758916172294,4.53504128,4015.3,4015.2,0.25797958]
[1758916172490,4.20004128,4015.3,4015.2,1.00747958]
[1758916172701,3.31450128,4015.3,4015.2,1.45542958]
[1758916172885,0.66193414,4015.9,4015.8,0.7495]
[1758916173095,1.22273414,4015.9,4015.8,1.0055]
[1758916173794,0.88773414,4015.9,4015.8,1.0055]
[1758916173999,0.43985414,4015.9,4015.8,1.0055]
[1758916174202,0.88773414,4015.9,4015.8,1.0055]
[1758916174503,0.21405414,4015.9,4015.8,1.0055]
[1758916174802,0.66193414,4015.9,4015.8,1.0055]
[1758916175895,0.88773414,4015.9,4015.8,1.0055]
[1758916177097,0.43985414,4015.9,4015.8,1.0055]
[1758916177295,0.00225414,4015.9,4015.8,1.0055]
[1758916177695,0.45013414,4015.9,4015.8,1.0055]
[1758916178799,0.00225414,4015.9,4015.8,1.0055]
[1758916180306,0.00225414,4015.9,4015.8,1.20854984]
[1758916182303,3.2078,4016.5,4015.8,1.20854984]
[1758916182509,4.42291,4016.5,4016.4,0.3399]
[1758916182712,4.42291,4016.5,4016.4,0.5959]
[1758916183008,3.9751,4016.5,4016.4,0.8013]
[1758916183206,4.42291,4016.5,4016.4,0.8013]
[1758916183508,4.42560543,4016.5,4016.4,0.8013]
[1758916184708,4.42560543,4016.5,4016.4,2.23643971]
[1758916184905,4.52744796,4016.5,4016.4,2.23643971]
[1758916185210,4.52744796,4016.5,4016.4,0.5453]
[1758916185508,1.11939,4017.1,4016.4,0.5453]
[1758916185509,0.221,4017.0,4016.9,0.7666]
[1758916185809,3.87655,4017.1,4017.0,0.8898]
[1758916186205,0.221,4017.1,4017.0,0.8898]
[1758916186504,0.22382028,4017.1,4017.0,0.8898]
[1758916186704,0.00282028,4017.1,4017.0,5.98744169]
[1758916187302,0.45056028,4017.1,4017.0,5.98744169]
[1758916188009,0.00282028,4017.1,4017.0,5.98744169]
[1758916188798,0.00282028,4017.1,4017.0,6.43519169]
[1758916189000,3.2078,4018.1,4018.0,0.8898]
[1758916189209,0.221,4018.3,4018.2,0.7666]
[1758916189502,0.221,4018.3,4018.2,1.0226]
[1758916189910,3.2078,4018.6,4018.5,0.1232]
[1758916190105,3.2107485,4018.6,4018.5,6.24344169]
[1758916191603,0.0029485,4018.6,4018.5,6.24344169]
[1758916192614,3.2078,4019.1,4019.0,0.8898]
[1758916192908,0.87756,4018.8,4018.7,0.5453]
[1758916193212,1.21486,4018.8,4018.7,5.89894169]
[1758916193511,1.21486,4018.8,4018.7,6.12024169]
[1758916193812,0.4326944,4018.8,4018.7,6.12024169]
[1758916194009,0.0026944,4018.8,4018.7,6.12024169]
[1758916197410,3.65527,4019.6,4018.7,10.78034169]
[1758916197610,3.87627,4019.6,4019.5,5.98744169]
[1758916197809,4.18617119,4019.6,4019.5,6.24344169]
[1758916198512,4.18829045,4019.6,4019.5,6.24344169]
[1758916199112,4.08738926,4019.6,4019.5,6.24344169]
[1758916199311,0.87958926,4019.6,4019.5,6.24344169]
[1758916199512,0.22311926,4019.6,4019.5,6.69092169]
[1758916199717,0.67057926,4019.6,4019.5,6.24344169]
[1758916200110,3.87837926,4019.6,4019.5,6.24344169]
[1758916200306,0.43,4018.9,4018.8,1.21415]
[1758916200519,1.21484,4018.9,4018.8,0.7666]
[1758916200812,0.7673,4018.9,4018.8,1.0226]
[1758916201009,1.21484,4018.9,4018.8,1.0226]
[1758916201407,0.44758,4018.6,4018.5,0.3399]
[1758916201607,0.7673,4018.3,4018.2,0.5479081]
[1758916201808,0.87761,4018.3,4018.2,1.0252081]
[1758916202014,1.21491,4018.3,4018.2,0.7692081]
[1758916202211,0.221,4018.3,4018.2,1.0252081]
[1758916202410,41.67753,4019.0,4018.9,0.2054]
[1758916202718,3.2078,4019.1,4019.0,1.33733]
[1758916202918,0.22311926,4019.6,4019.5,0.5499]
[1758916203117,0.22311926,4019.6,4019.5,1.1458]
[1758916203416,0.87957926,4019.6,4019.5,1.1458]
[1758916203617,0.53302643,4019.6,4019.5,1.1458]
[1758916203826,1.21687926,4019.6,4019.5,1.1458]
[1758916204319,0.87957926,4019.6,4019.5,1.1458]
[1758916204713,1.317778,4019.6,4019.5,0.5453]
[1758916204920,1.317778,4019.6,4019.5,0.8013]
[1758916205113,1.31634345,4019.6,4019.5,0.8013]
[1758916205315,1.31634345,4019.6,4019.5,1.1458]
[1758916205510,0.43211926,4019.6,4019.5,0.8898]
[1758916205722,0.22311926,4019.6,4019.5,1.1458]
[1758916205914,0.67057926,4019.6,4019.5,1.1458]
[1758916206111,0.87957926,4019.6,4019.5,1.1458]
[1758916206918,0.22311926,4019.6,4019.5,1.1458]
[1758916207118,0.00211926,4019.6,4019.5,1.1458]
[1758916207510,0.00211926,4019.6,4019.5,1.59328]
[1758916207717,3.87964,4020.7,4020.6,0.219]
[1758916207912,4.09624,4020.7,4020.6,0.7966]
[1758916208115,3.6489,4020.7,4020.6,1.0071]
[1758916208316,3.87959,4021.2,4021.1,0.4295]
[1758916208521,0.67179,4021.2,4021.1,1.0071]
[1758916208725,0.00217915,4021.2,4021.1,0.75334408]
[1758916208917,0.22667915,4021.2,4021.1,1.00934408]
[1758916209225,0.00217915,4021.2,4021.1,1.00934408]
[1758916210019,0.00217915,4021.2,4021.1,6.00934408]
[1758916211324,0.00217915,4021.2,4021.1,5.75334408]
[1758916211620,0.00217915,4021.2,4021.1,44.81234408]
[1758916212624,0.00217915,4021.2,4021.1,44.80934408]
[1758916213721,3.2078,4023.2,4022.8,0.7445]
[1758916213925,0.3207,4023.5,4022.8,10.06618213]
[1758916214124,0.7805,4022.9,4022.8,10.06618213]
[1758916214428,0.022,4022.9,4022.8,10.06618213]
[1758916214629,0.02427586,4022.9,4022.8,10.06618213]
[1758916215122,0.02427586,4022.9,4022.8,9.64258213]
[1758916215325,3.2078,4024.2,4023.1,0.3209]
[1758916215326,0.44702,4023.6,4023.1,0.3209]
[1758916215520,0.44703,4023.5,4023.4,0.3209]
[1758916215720,0.3207,4023.6,4023.4,0.5769]
[1758916215921,0.44702,4023.7,4023.4,0.256]
[1758916216115,1.11742,4024.1,4023.3,3.2078]
[1758916216116,0.44704,4023.4,4023.3,3.2078]
[1758916216321,0.44711,4022.8,4022.5,0.3209]
[1758916216524,0.3207,4022.7,4022.6,0.5769]
[1758916216823,0.44716,4022.4,4022.2,0.3209]
[1758916217024,0.3207,4022.9,4022.3,0.256]
[1758916217326,3.3344,4023.0,4022.4,0.256]
[1758916217519,0.3207,4023.0,4022.6,3.2078]
[1758916217713,40.8,4023.0,4022.8,0.3209]
[1758916217918,0.3207,4023.0,4022.9,0.256]
[1758916218320,0.3207,4023.3,4023.0,0.3209]
[1758916218526,0.76776,4023.3,4023.1,3.7847]
[1758916219021,0.00245771,4023.4,4023.1,3.4638]
[1758916219217,0.77019771,4023.4,4023.1,3.2078]
[1758916219417,0.76776,4023.3,4023.2,0.256]
[1758916219618,0.76776,4023.3,4023.1,3.2078]
[1758916219924,0.3207,4023.2,4023.1,3.2078]
[1758916220132,0.3207,4023.2,4023.1,3.4638]
[1758916220318,0.3207,4023.2,4022.6,3.2078]
[1758916220524,0.4471,4023.0,4022.8,0.3209]
[1758916220723,0.44709,4023.0,4022.9,0.256]
[1758916220922,0.44709,4023.0,4022.9,0.5769]
[1758916221326,0.44709,4023.0,4022.9,0.3209]
[1758916221523,0.44715,4022.4,4022.3,0.3209]
[1758916221825,0.44715,4022.4,4021.9,0.3209]
[1758916221826,3.97565,4022.4,4021.9,0.3209]
[1758916222025,0.44723,4021.7,4021.6,3.5287]
[1758916222225,0.76793,4021.7,4021.6,0.3209]
[1758916222528,0.76793,4021.7,4021.6,0.256]
[1758916222835,0.44728,4021.3,4021.1,0.00224408]
[1758916223028,0.44728,4021.3,4021.2,0.256]
[1758916223224,0.76798,4021.3,4021.1,0.00224408]
[1758916223425,0.3207,4021.2,4021.1,0.00224408]
[1758916223626,0.44727,4021.4,4021.1,0.57914408]
[1758916223821,0.44726,4021.5,4021.1,0.70554408]
[1758916224027,0.76788,4022.2,4021.7,0.3209]
[1758916224230,0.3207,4022.3,4021.6,0.3209]
[1758916224526,0.76797,4021.4,4021.2,0.3209]
[1758916224727,0.76797,4021.4,4021.3,0.256]
[1758916224921,0.3207,4021.4,4021.3,0.5769]
[1758916225119,0.3207,4021.7,4021.4,0.3209]
[1758916225330,3.2078,4021.8,4021.1,0.44953408]
[1758916225331,0.76794,4021.6,4021.5,0.256]
[1758916225729,0.44729,4021.2,4021.1,0.32314408]
[1758916225935,0.76799,4021.2,4021.1,0.00224408]
[1758916226230,3.97579,4021.2,4021.1,0.25824408]
[1758916226429,3.97579,4021.2,4021.1,0.00224408]
[1758916226735,0.76804,4020.7,4020.6,3.2078]
[1758916226921,0.44741,4020.1,4020.0,0.3209]
[1758916227125,0.76811,4020.1,4020.0,0.256]
[1758916227530,0.45011773,4020.1,4020.0,0.00222389]
[1758916227729,0.77081773,4020.1,4020.0,0.25822389]
[1758916228333,3.97861773,4020.1,4020.0,0.25822389]
[1758916228526,4.0778061,4020.1,4020.0,0.25822389]
[1758916228828,4.0778061,4020.1,4020.0,0.00222389]
[1758916229033,4.0778061,4020.1,4020.0,0.25822389]
[1758916229728,4.0778061,4020.1,4020.0,0.57912389]
[1758916230126,3.21050773,4020.1,4020.0,0.57912389]
[1758916230432,3.21050773,4020.1,4020.0,0.70672389]
[1758916231128,8.6304054,4020.1,4020.0,0.00222389]
[1758916232221,3.6304054,4020.1,4020.0,0.25822389]
[1758916233425,3.6304054,4020.1,4020.0,0.00222389]
[1758916233631,0.76819,4019.4,4019.3,3.2078]
[1758916233934,0.86746062,4019.4,4019.3,0.256]
[1758916234126,0.86746062,4019.4,4018.9,0.3209]
[1758916234127,0.76823,4019.0,4018.9,0.3209]
[1758916234326,0.76823,4019.0,4018.9,0.5769]
[1758916234528,3.6551,4019.5,4018.9,0.25896072]
[1758916234732,0.3207,4019.3,4018.9,0.25896072]
[1758916234929,0.09925547,4019.2,4018.9,0.25896072]
[1758916235134,0.3207,4019.3,4019.0,0.3209]
[1758916235329,3.2078,4019.5,4019.2,0.3209]
[1758916235534,3.2078,4019.5,4019.4,0.3209]
[1758916236835,0.44747,4019.6,4019.5,0.1276]
[1758916237039,0.44747,4019.6,4019.5,0.4485]
[1758916237532,0.44753,4019.0,4018.9,0.00296072]
[1758916237725,0.44753,4019.0,4018.9,0.57986072]
[1758916237927,0.76823,4019.0,4018.9,0.32386072]
[1758916238132,0.76823,4019.0,4018.9,0.57986072]
[1758916238333,1.11865,4019.7,4019.0,0.4485]
[1758916238334,0.44752,4019.2,4019.0,0.4485]
[1758916238531,0.44752,4019.2,4019.1,0.3209]
[1758916239035,0.44752,4019.2,4019.1,0.5769]
[1758916240436,0.4475,4019.3,4019.1,0.256]
[1758916240737,0.4475,4019.3,4019.2,0.3209]
[1758916240942,0.4475,4019.3,4019.2,0.5769]
[1758916241438,0.4475,4019.3,4019.2,0.3209]
[1758916241631,0.4475,4019.3,4019.2,0.5769]
[1758916242040,0.4475,4019.3,4019.2,0.3209]
[1758916242239,0.4475,4019.3,4019.2,0.5769]
[1758916242434,0.7616,4019.3,4019.2,0.5769]
[1758916242732,0.9685,4019.3,4019.2,0.5298]
[1758916242932,0.6544,4019.3,4019.2,0.7858]
[1758916243129,0.8693,4019.3,4019.2,0.7858]
[1758916243334,0.8693,4019.3,4019.2,1.0132]
[1758916244332,3.2078,4019.8,4019.2,0.6923]
[1758916244532,4.07704,4019.8,4019.7,0.2089]
[1758916244734,4.07704,4019.8,4019.7,0.7937]
[1758916245034,0.2069,4019.8,4019.7,1.0211]
[1758916245240,0.45011773,4020.1,4020.0,0.4588]
[1758916246540,0.76155,4019.7,4019.6,3.2078]
[1758916246840,0.44744,4019.9,4019.6,3.7926]
[1758916247043,0.44744,4019.8,4019.7,0.3288]
[1758916248245,0.44744,4019.8,4019.7,0.5848]
[1758916249143,0.76154,4019.8,4019.7,0.5848]
[1758916249337,0.44744,4019.8,4019.7,0.5848]
[1758916249846,0.76154,4019.8,4019.7,0.256]
[1758916250138,0.76154,4019.8,4019.7,0.5848]
[1758916250442,0.96844,4019.8,4019.7,0.7937]
[1758916250642,0.65434,4019.8,4019.7,0.7937]
[1758916251046,0.86924,4019.8,4019.7,0.7937]
[1758916251346,1.18341,4019.2,4019.1,3.2078]
[1758916251547,1.2804622,4019.2,4019.1,3.4638]
[1758916251762,0.4319,4019.0,4018.6,0.88572975]
[1758916252042,0.76172,4018.2,4018.1,3.2078]
[1758916252245,0.85892133,4018.2,4018.1,3.4638]
[1758916252633,0.85892133,4018.2,4018.1,3.7926]
[1758916252838,0.85892133,4018.2,4018.1,3.79471421]
[1758916253239,0.76172,4018.2,4018.1,3.79471421]
[1758916254044,0.85889232,4018.2,4018.1,0.00211421]
[1758916254236,0.85889232,4018.2,4018.1,0.25811421]
[1758916254840,0.85889232,4018.2,4018.1,0.00211421]
[1758916255147,0.85889232,4018.2,4018.1,0.25811421]
[1758916255349,0.85889232,4018.2,4018.1,0.00211421]
[1758916255546,0.85889232,4018.2,4018.1,0.25811421]
[1758916257650,0.85889232,4018.2,4018.1,0.00211421]
[1758916257651,6.28069232,4018.2,4018.1,0.00211421]
[1758916257856,0.44774,4017.2,4017.1,0.5377]
[1758916258051,0.4218,4017.2,4017.1,1.0211]
[1758916258241,0.65459,4017.6,4017.5,0.2089]
[1758916258444,0.96657716,4017.6,4017.5,0.7937]
[1758916258740,0.96657716,4017.6,4017.5,1.15327605]
[1758916258741,0.09929056,4017.6,4017.5,1.15327605]
[1758916258941,0.0022034,4017.6,4017.5,4.36107605]
[1758916259444,0.0022034,4017.6,4017.5,9.36107605]
[1758916259645,3.2078,4018.5,4017.5,9.36107605]
[1758916259854,3.2078,4018.5,4018.4,0.3288]
[1758916260044,3.30490511,4018.5,4018.4,0.5848]
[1758916260248,3.75249511,4018.5,4018.4,0.3288]
[1758916260441,0.3141,4018.1,4018.0,3.2078]
[1758916260746,0.00266327,4018.1,4018.0,3.5938]
[1758916260952,0.00266327,4018.1,4018.0,3.9226]
[1758916261148,0.00266327,4018.1,4018.0,0.4588]
[1758916261338,0.00266327,4018.1,4018.0,3.9226]
[1758916261540,3.65532,4019.1,4018.0,8.9226]
[1758916261848,3.65532,4019.1,4019.0,0.4588]
[1758916262041,0.44756,4018.7,4018.5,0.13]